bitfinex/quotes_BTCUSD_20250206
["timestamp","ask_amount","ask_price","bid_price","bid_amount"]
[1738800000688,0.10261045,96615.0,96614.0,0.15552251]
[1738800001029,0.12561045,96615.0,96614.0,0.15552251]
[1738800002530,0.12561045,96615.0,96614.0,0.20352251]
[1738800003145,0.18775045,96615.0,96614.0,0.20352251]
[1738800003504,0.01,96604.0,96585.0,7.265e-05]
[1738800003696,0.01,96598.0,96586.0,0.08291659]
[1738800003897,0.023,96602.0,96586.0,0.08291659]
[1738800004075,0.023,96600.0,96585.0,7.265e-05]
[1738800004253,0.06782135,96615.0,96585.0,7.265e-05]
[1738800004455,0.01,96588.0,96585.0,7.265e-05]
[1738800004721,0.16464365,96586.0,96551.0,0.0793]
[1738800004925,0.068,96569.0,96547.0,0.00022428]
[1738800005127,0.20617982,96561.0,96547.0,0.00022428]
[1738800005329,0.06214,96557.0,96547.0,0.00022428]
[1738800005655,0.06214,96557.0,96500.0,0.35227273]
[1738800005656,0.10514,96530.0,96500.0,0.35227273]
[1738800005796,0.07214,96518.0,96500.0,0.35227273]
[1738800005983,0.06214,96507.0,96500.0,0.35227273]
[1738800006178,0.8792,96529.0,96500.0,0.35227273]
[1738800006179,0.06214,96519.0,96500.0,0.35227273]
[1738800006380,0.06214,96517.0,96500.0,0.35273896]
[1738800006636,0.18764365,96501.0,96500.0,0.35273896]
[1738800007018,1.95324365,96501.0,96500.0,0.34308153]
[1738800007217,1.95324365,96501.0,96500.0,0.33260153]
[1738800007462,0.043,96500.0,96499.0,0.14897842]
[1738800007695,0.32,96495.0,96494.0,0.61757762]
[1738800007981,0.17074727,96495.0,96494.0,0.12112699]
[1738800008210,0.13774727,96495.0,96494.0,0.12112699]
[1738800008426,0.10250365,96495.0,96494.0,0.12112699]
[1738800008829,0.12550365,96495.0,96494.0,0.12112699]
[1738800009034,0.14550365,96495.0,96494.0,0.12112699]
[1738800009204,0.14550365,96495.0,96494.0,0.08638329]
[1738800009404,1.44980365,96495.0,96494.0,0.05582329]
[1738800009607,0.02,96494.0,96493.0,0.71907988]
[1738800009808,0.02,96492.0,96491.0,0.32318408]
[1738800009991,1.91634727,96492.0,96491.0,0.25236959]
[1738800010201,1.91634727,96492.0,96491.0,0.17712294]
[1738800010400,1.91634727,96492.0,96491.0,0.12159556]
[1738800010601,0.45060365,96492.0,96491.0,0.12159556]
[1738800011252,0.42760365,96492.0,96491.0,0.12159556]
[1738800011919,0.10250365,96492.0,96491.0,0.12159556]
[1738800012126,0.01,96526.0,96491.0,0.16759556]
[1738800012333,0.10250365,96516.0,96491.0,0.16759556]
[1738800012944,0.15485664,96530.0,96491.0,0.16759556]
[1738800012945,0.01051531,96529.0,96515.0,0.08291659]
[1738800013147,0.01081682,96530.0,96519.0,0.14403982]
[1738800013508,0.01,96577.0,96520.0,0.00103594]
[1738800013666,0.10250365,96568.0,96521.0,0.00103582]
[1738800013845,0.10250365,96568.0,96522.0,0.00103577]
[1738800014047,0.023,96567.0,96533.0,0.08291659]
[1738800014248,0.10250365,96566.0,96533.0,0.08291659]
[1738800014591,0.10250365,96566.0,96550.0,0.14403982]
[1738800014836,0.00013967,96566.0,96552.0,0.076]
[1738800015027,0.00013967,96566.0,96553.0,0.00103554]
[1738800015265,0.00013967,96566.0,96554.0,0.00103554]
[1738800015993,0.00013967,96566.0,96553.0,0.08291659]
[1738800016198,0.00013967,96566.0,96555.0,0.046]
[1738800016397,0.09265037,96565.0,96556.0,0.05349174]
[1738800016596,0.09265037,96565.0,96556.0,0.05245635]
[1738800016811,0.09265037,96565.0,96557.0,0.00103548]
[1738800017465,0.00844,96613.0,96558.0,0.18350365]
[1738800017666,0.10250365,96612.0,96590.0,0.21610781]
[1738800017873,0.10250365,96594.0,96558.0,0.081]
[1738800018074,0.01,96582.0,96558.0,0.081]
[1738800018386,0.033,96581.0,96558.0,0.081]
[1738800018522,0.023,96581.0,96557.0,0.08291659]
[1738800018723,0.033,96581.0,96557.0,0.08291659]
[1738800018933,0.023,96582.0,96557.0,0.08291659]
[1738800019129,0.023,96565.0,96557.0,0.08291659]
[1738800019500,0.10250365,96564.0,96557.0,0.08291659]
[1738800019759,0.10255025,96565.0,96557.0,0.08291659]
[1738800020173,4.66e-05,96565.0,96558.0,0.1227]
[1738800020306,4.66e-05,96565.0,96559.0,0.00103546]
[1738800020503,4.66e-05,96565.0,96560.0,0.00103546]
[1738800020748,4.66e-05,96565.0,96558.0,0.1227]
[1738800020933,4.66e-05,96565.0,96559.0,0.01227]
[1738800021140,4.66e-05,96565.0,96560.0,0.00103551]
[1738800021345,4.66e-05,96565.0,96561.0,0.10250365]
[1738800021550,0.00852,96622.0,96590.0,0.21610781]
[1738800021889,0.00852,96622.0,96561.0,0.10250365]
[1738800021890,0.10250365,96614.0,96580.0,0.21610781]
[1738800022098,0.12550365,96613.0,96570.0,0.21610781]
[1738800022226,0.00057331,96615.0,96570.0,0.21610781]
[1738800022227,0.10250365,96608.0,96577.0,0.08291659]
[1738800022490,0.023,96605.0,96577.0,0.08291659]
[1738800022684,0.023,96603.0,96577.0,0.08291659]
[1738800023006,0.12550365,96599.0,96562.0,0.08291659]
[1738800023205,0.023,96595.0,96572.0,0.08291659]
[1738800023405,0.10250365,96594.0,96572.0,0.08291659]
[1738800023848,0.023,96593.0,96572.0,0.08291659]
[1738800023987,0.01,96601.0,96562.0,0.08291659]
[1738800023988,0.023,96586.0,96562.0,0.08291659]
[1738800024189,0.10250365,96585.0,96562.0,0.08291659]
[1738800024387,0.023,96583.0,96562.0,0.08291659]
[1738800024631,0.023,96581.0,96562.0,0.08291659]
[1738800024847,0.10250365,96580.0,96562.0,0.08291659]
[1738800026894,0.10250365,96580.0,96552.0,0.00022449]
[1738800027743,0.10250365,96580.0,96562.0,0.08291659]
[1738800027957,0.10250365,96580.0,96552.0,0.00022449]
[1738800029615,0.10250365,96580.0,96559.0,0.08291659]
[1738800029799,0.10250365,96580.0,96560.0,0.00103556]
[1738800030030,0.10250365,96580.0,96559.0,0.08291659]
[1738800030247,0.10250365,96580.0,96552.0,0.00022449]
[1738800030443,0.10250365,96578.0,96552.0,0.00022449]
[1738800030724,0.155343,96560.0,96552.0,0.00022449]
[1738800030927,0.10250365,96559.0,96552.0,0.00022449]
[1738800031558,0.10250365,96559.0,96558.0,0.0768]
[1738800031761,0.155355,96553.0,96552.0,0.00022449]
[1738800031938,0.155355,96553.0,96552.0,0.00036416]
[1738800036672,0.01080969,96597.0,96564.0,0.155337]
[1738800036878,0.155329,96569.0,96560.0,0.155342]
[1738800037140,0.155331,96568.0,96559.0,0.155344]
[1738800037327,0.207099,96572.0,96560.0,0.00103551]
[1738800037585,0.155341,96562.0,96554.0,0.00103549]
[1738800037802,0.00848,96586.0,96553.0,0.00103555]
[1738800038004,0.207093,96575.0,96554.0,0.00103549]
[1738800038334,0.155339,96563.0,96554.0,0.00103549]
[1738800038537,0.155339,96563.0,96553.0,0.155353]
[1738800038736,0.155329,96570.0,96553.0,0.20714]
[1738800038924,0.15533,96569.0,96560.0,0.155343]
[1738800039120,0.00848,96586.0,96560.0,0.155343]
[1738800039121,0.00848,96595.0,96565.0,0.155335]
[1738800039323,0.207061,96590.0,96565.0,0.28187038]
[1738800039570,0.207069,96586.0,96565.0,0.280835]
[1738800039822,0.155313,96579.0,96565.0,0.280835]
[1738800040030,0.06214,96587.0,96565.0,0.280835]
[1738800040031,0.155332,96567.0,96565.0,0.1255]
[1738800040226,0.155298,96589.0,96565.0,0.280835]
[1738800040437,0.00852,96614.0,96565.0,0.280835]
[1738800040438,0.01,96628.0,96565.0,0.43213385]
[1738800040685,0.00852,96614.0,96588.0,0.155297]
[1738800040882,0.00852,96614.0,96589.0,0.0010352]
[1738800040883,0.155281,96599.0,96589.0,0.0010352]
[1738800041101,0.00852,96614.0,96589.0,0.0010352]
[1738800041102,0.0086267,96627.0,96591.0,0.207058]
[1738800041427,0.0086267,96627.0,96604.0,0.155271]
[1738800041601,0.155249,96619.0,96605.0,0.05796931]
[1738800041803,0.0001067,96627.0,96605.0,0.05796935]
[1738800042102,0.00057341,96606.0,96605.0,0.05796935]
[1738800042327,0.00057341,96606.0,96605.0,0.07721605]
[1738800042789,0.00057341,96606.0,96605.0,0.0761811]
[1738800043314,0.00057341,96606.0,96605.0,0.25611969]
[1738800043515,0.00057341,96606.0,96605.0,0.25508475]
[1738800044562,0.00057341,96606.0,96605.0,0.30278475]
[1738800045323,0.00057341,96606.0,96605.0,0.1433467]
[1738800045521,0.00057341,96606.0,96605.0,0.14438158]
[1738800045722,0.00057341,96606.0,96605.0,0.1433467]
[1738800045875,0.00057341,96606.0,96605.0,0.14438161]
[1738800046307,0.00057341,96606.0,96605.0,0.1433467]
[1738800046890,0.00057341,96606.0,96605.0,0.0192467]
[1738800048279,0.00057341,96606.0,96592.0,0.00103511]
[1738800048416,0.00057341,96606.0,96604.0,0.155272]
[1738800048612,0.00057341,96606.0,96605.0,0.00103493]
[1738800048822,0.00057341,96606.0,96604.0,0.155272]
[1738800049047,0.00057341,96606.0,96605.0,0.22753862]
[1738800049233,0.00057341,96606.0,96605.0,0.25856331]
[1738800049434,0.00057341,96606.0,96605.0,0.34235404]
[1738800050506,4.457e-05,96615.0,96614.0,0.155257]
[1738800050704,4.457e-05,96615.0,96614.0,0.15629178]
[1738800050705,0.00018441,96615.0,96614.0,0.15629178]
[1738800050883,0.00018441,96615.0,96614.0,0.17550423]
[1738800051978,0.00018441,96615.0,96614.0,0.27800778]
[1738800052180,0.00018441,96615.0,96614.0,0.34617678]
[1738800052580,0.00018441,96615.0,96614.0,0.42207678]
[1738800053741,0.00018441,96615.0,96614.0,0.45278563]
[1738800054108,0.00018441,96615.0,96614.0,0.48477107]
[1738800054447,0.00018441,96615.0,96614.0,0.45278563]
[1738800054650,0.00018441,96615.0,96614.0,0.4947673]
[1738800054854,0.0001067,96643.0,96642.0,0.155212]
[1738800055059,0.00022428,96645.0,96644.0,0.155208]
[1738800055240,0.00036404,96645.0,96644.0,0.25874607]
[1738800055446,0.00036404,96645.0,96644.0,0.25771165]
[1738800056567,0.00036404,96645.0,96644.0,0.155208]
[1738800056760,0.00036404,96645.0,96644.0,0.24990579]
[1738800056978,0.00036404,96645.0,96644.0,0.2488713]
[1738800064210,0.00036404,96645.0,96644.0,0.0499213]
[1738800064415,0.00036404,96645.0,96644.0,0.2051293]
[1738800065854,0.0001069,96650.0,96649.0,0.1552]
[1738800066077,0.0001069,96650.0,96649.0,0.29060652]
[1738800066286,0.0001069,96650.0,96649.0,0.28957211]
[1738800066486,0.0001069,96663.0,96662.0,0.155179]
[1738800066863,0.0001069,96663.0,96662.0,0.15621331]
[1738800067460,0.0001069,96663.0,96657.0,0.206917]
[1738800067662,0.0001069,96663.0,96662.0,0.04986888]
[1738800067953,0.10261055,96663.0,96662.0,0.04986888]
[1738800068332,0.11762169,96663.0,96662.0,0.04986888]
[1738800068518,0.67786169,96663.0,96662.0,0.04986888]
[1738800068645,0.49021804,96663.0,96662.0,0.04986888]
[1738800068840,0.48003247,96663.0,96662.0,0.04986888]
[1738800069203,0.33003247,96663.0,96662.0,0.04986888]
[1738800069504,0.33003247,96663.0,96662.0,0.01921245]
[1738800069727,0.33003247,96663.0,96662.0,0.03665249]
[1738800069928,0.00493247,96663.0,96662.0,0.03665249]
[1738800070131,0.00493247,96663.0,96662.0,0.18629051]
[1738800070342,0.0001069,96663.0,96662.0,0.08275249]
[1738800070959,0.0001069,96663.0,96662.0,0.06354004]
[1738800071972,0.0001069,96663.0,96662.0,0.16707803]
[1738800072175,0.0001069,96666.0,96663.0,0.155178]
[1738800072360,0.0001069,96666.0,96664.0,0.21997029]
[1738800072565,0.0001069,96666.0,96665.0,0.155175]
[1738800072787,0.0001069,96666.0,96665.0,0.28960144]
[1738800072999,0.0001069,96666.0,96665.0,0.25767865]
[1738800073208,0.0001069,96666.0,96665.0,0.3601823]
[1738800073570,0.0001069,96666.0,96665.0,0.39214385]
[1738800076094,0.0001069,96666.0,96665.0,0.40214385]
[1738800077788,0.0001069,96666.0,96665.0,0.42514385]
[1738800078197,0.0205363,96676.0,96668.0,0.16517]
[1738800078399,0.0205363,96676.0,96668.0,0.403173]
[1738800078769,0.0205363,96676.0,96668.0,0.50033885]
[1738800079748,0.0205363,96676.0,96668.0,0.65033885]
[1738800080082,0.0205363,96676.0,96668.0,0.64033885]
[1738800080327,0.0205363,96676.0,96668.0,0.61733885]
[1738800080740,0.0205363,96676.0,96668.0,0.62747901]
[1738800080943,0.0205363,96676.0,96668.0,0.47747901]
[1738800081293,0.0205363,96676.0,96668.0,0.46733885]
[1738800081502,0.0205363,96676.0,96668.0,0.03196155]
[1738800081872,0.0205363,96676.0,96664.0,0.03]
[1738800081873,0.155161,96674.0,96665.0,0.03196155]
[1738800082076,0.155161,96674.0,96664.0,0.155175]
[1738800082277,0.0205363,96676.0,96667.0,0.15517]
[1738800082477,0.00486232,96668.0,96667.0,0.15517]
[1738800082607,0.0205363,96676.0,96667.0,0.34828866]
[1738800082808,0.0205363,96676.0,96668.0,0.29447666]
[1738800083034,0.0205363,96676.0,96668.0,0.41657666]
[1738800083243,9.31e-05,96676.0,96675.0,0.155159]
[1738800083449,0.00023283,96676.0,96675.0,0.28963566]
[1738800083650,0.00023283,96676.0,96675.0,0.39213931]
[1738800087376,0.155127,96695.0,96675.0,0.23698031]
[1738800087551,0.0001069,96696.0,96687.0,0.155139]
[1738800087710,0.00487392,96688.0,96687.0,0.155139]
[1738800087906,0.0001069,96696.0,96687.0,0.18715265]
[1738800088289,0.0001069,96696.0,96688.0,0.07141461]
[1738800088473,0.0001069,96696.0,96688.0,0.07244866]
[1738800088906,0.0001069,96696.0,96688.0,0.07141461]
[1738800092232,0.155136,96690.0,96688.0,0.03201365]
[1738800092653,0.2069479,96693.0,96665.0,0.00022428]
[1738800092654,0.155173,96666.0,96665.0,0.00022428]
[1738800092853,0.26253684,96666.0,96665.0,0.00022428]
[1738800093096,0.26253684,96666.0,96665.0,0.00036401]
[1738800093286,0.27125684,96666.0,96665.0,0.00036401]
[1738800093493,0.26253684,96666.0,96665.0,0.00036401]
[1738800093650,0.00486019,96666.0,96665.0,0.00036401]
[1738800093972,0.01933648,96679.0,96665.0,0.00036401]
[1738800094191,0.0259213,96689.0,96665.0,0.00036401]
[1738800094192,0.00514554,96666.0,96665.0,0.15553801]
[1738800094395,0.155146,96683.0,96667.0,0.206895]
[1738800094585,0.20685,96688.0,96677.0,0.155154]
[1738800094911,0.155151,96680.0,96678.0,0.0155154]
[1738800095028,0.15515,96681.0,96672.0,0.155163]
[1738800095231,0.00515505,96680.0,96674.0,0.155159]
[1738800095457,0.206855,96686.0,96675.0,0.1872226]
[1738800095663,0.00515844,96685.0,96677.0,0.155155]
[1738800095860,0.16030144,96685.0,96677.0,0.155155]
[1738800096617,0.00515844,96685.0,96674.0,0.0010342]
[1738800096818,0.00515844,96685.0,96668.0,0.206893]
[1738800096819,0.206859,96684.0,96671.0,0.155164]
[1738800097018,0.15516,96675.0,96673.0,0.00022428]
[1738800097246,0.00515097,96674.0,96673.0,0.00022428]
[1738800097423,0.15516,96675.0,96673.0,0.00022428]
[1738800097581,0.00515097,96674.0,96673.0,0.00022428]
[1738800098468,0.10765462,96674.0,96673.0,0.00022428]
[1738800101276,0.43275462,96674.0,96673.0,0.00022428]
[1738800101552,0.60575462,96674.0,96673.0,0.00022428]
[1738800101961,0.58275462,96674.0,96673.0,0.00022428]
[1738800103934,0.59151462,96674.0,96673.0,0.00022428]
[1738800106085,0.61451462,96674.0,96673.0,0.00022428]
[1738800109012,0.45575462,96674.0,96673.0,0.00022428]
[1738800109243,0.43275462,96674.0,96673.0,0.00022428]
[1738800109452,0.58275462,96674.0,96673.0,0.00022428]
[1738800111573,0.60575462,96674.0,96673.0,0.00022428]
[1738800111776,0.60575462,96674.0,96665.0,0.00036401]
[1738800111777,0.328162,96673.0,96665.0,0.00036401]
[1738800111932,0.328173,96666.0,96665.0,0.00036401]
[1738800112136,0.75577665,96666.0,96665.0,0.00036401]
[1738800112339,0.76792519,96666.0,96665.0,0.00036401]
[1738800112536,0.83788029,96666.0,96665.0,1e-08]
[1738800112744,0.89414029,96666.0,96665.0,1e-08]
[1738800113205,0.89414029,96666.0,96631.0,0.08291659]
[1738800113206,0.328208,96644.0,96631.0,0.08291659]
[1738800113417,0.76088722,96644.0,96631.0,0.08291659]
[1738800114030,0.73788722,96644.0,96631.0,0.08291659]
[1738800114231,0.74668722,96644.0,96631.0,0.08291659]
[1738800115080,0.75688916,96644.0,96631.0,0.08291659]
[1738800115253,0.77988916,96644.0,96617.0,0.08291659]
[1738800116030,0.77963056,96644.0,96617.0,0.08291659]
[1738800116162,0.84177056,96644.0,96617.0,0.08291659]
[1738800118038,0.77963056,96644.0,96617.0,0.08291659]
[1738800119611,0.30525,96618.0,96617.0,0.08291659]
[1738800119797,0.40775365,96618.0,96617.0,0.08305635]
[1738800119997,0.43581155,96618.0,96617.0,0.00013976]
[1738800120727,0.155292,96592.0,96591.0,0.08291659]
[1738800120945,0.25779565,96592.0,96591.0,0.0833831]
[1738800121143,0.26283586,96592.0,96591.0,0.00046651]
[1738800122992,0.41283586,96592.0,96591.0,0.00046651]
[1738800123203,0.43583586,96592.0,96591.0,0.00046651]
[1738800123807,0.43583586,96592.0,96591.0,5.1e-07]
[1738800124016,0.82307586,96592.0,96591.0,5.1e-07]
[1738800124199,0.90407586,96592.0,96591.0,5.1e-07]
[1738800124733,0.91437366,96592.0,96591.0,5.1e-07]
[1738800127274,0.93437366,96592.0,96591.0,5.1e-07]
[1738800128037,0.155313,96579.0,96578.0,0.08291659]
[1738800128355,0.26278841,96579.0,96578.0,0.08291659]
[1738800128477,0.155316,96577.0,96576.0,0.00036412]
[1738800128674,0.26279005,96577.0,96576.0,0.00036412]
[1738800129089,0.27167005,96577.0,96576.0,0.00036412]
[1738800129308,0.29467005,96577.0,96576.0,0.00036412]
[1738800129518,0.76977005,96577.0,96576.0,0.00036412]
[1738800129941,0.78015648,96577.0,96576.0,0.00036412]
[1738800131373,0.84229648,96577.0,96576.0,0.00036412]
[1738800132343,0.01,96571.0,96566.0,4.9e-07]
[1738800132547,0.01,96571.0,96546.0,0.00022428]
[1738800132548,0.15,96559.0,96546.0,0.00022428]
[1738800132877,0.49300765,96547.0,96546.0,0.00036395]
[1738800133229,0.49786126,96547.0,96546.0,0.00036395]
[1738800134038,0.50674126,96547.0,96546.0,0.00036395]
[1738800134631,0.51695275,96547.0,96546.0,0.00036395]
[1738800135255,0.367528,96532.0,96511.0,0.08291659]
[1738800135507,0.82288766,96532.0,96531.0,0.0002466]
[1738800136943,0.82288766,96532.0,96531.0,1e-08]
[1738800137260,0.833232,96532.0,96531.0,1e-08]
[1738800139932,0.1,96529.0,96492.0,0.16601659]
[1738800140085,0.155448,96495.0,96494.0,0.000364]
[1738800140303,0.58305165,96495.0,96494.0,0.000364]
[1738800140502,0.32981508,96495.0,96494.0,0.000364]
[1738800140703,0.3251,96495.0,96494.0,0.000364]
[1738800140988,0.32981508,96495.0,96494.0,0.000364]
[1738800141188,0.32981508,96495.0,96494.0,0.155814]
[1738800141397,0.3251,96527.0,96498.0,0.0755]
[1738800141607,0.3251,96534.0,96521.0,0.076]
[1738800141790,0.3251,96535.0,96522.0,0.00103594]
[1738800141989,0.155389,96532.0,96523.0,0.01223359]
[1738800142194,0.1554,96525.0,96521.0,0.076]
[1738800142408,0.155404,96522.0,96521.0,0.076]
[1738800142963,0.155404,96522.0,96496.0,0.08291659]
[1738800142964,0.10250365,96522.0,96497.0,0.1305]
[1738800143189,0.155434,96504.0,96497.0,0.1305]
[1738800143389,0.20721,96520.0,96497.0,0.13063972]
[1738800143609,0.10250365,96519.0,96497.0,0.13063972]
[1738800143811,0.207236,96509.0,96497.0,0.13063972]
[1738800144024,0.155436,96503.0,96497.0,0.13063972]
[1738800144222,0.10250365,96519.0,96497.0,0.13063972]
[1738800144223,0.155443,96499.0,96497.0,0.13063972]
[1738800144424,0.207217,96517.0,96497.0,0.13063972]
[1738800144626,0.155442,96499.0,96497.0,0.13063972]
[1738800146221,0.155442,96499.0,96497.0,0.13074672]
[1738800147013,0.155432,96505.0,96497.0,0.13074672]
[1738800147196,0.207221,96515.0,96498.0,0.00103618]
[1738800147395,0.155429,96508.0,96498.0,0.00103618]
[1738800147595,0.207207,96522.0,96497.0,0.13074672]
[1738800147945,0.10250365,96517.0,96498.0,0.00103607]
[1738800148329,0.155428,96508.0,96498.0,0.00103607]
[1738800148539,0.10250365,96517.0,96497.0,0.23325037]
[1738800148746,0.10250365,96517.0,96498.0,0.00103608]
[1738800148747,0.207219,96516.0,96498.0,0.00103608]
[1738800149071,0.207238,96508.0,96498.0,0.02634971]
[1738800149274,0.155428,96508.0,96498.0,0.02531363]
[1738800149563,0.10250365,96517.0,96497.0,0.13074672]
[1738800149564,0.155442,96499.0,96497.0,0.13074672]
[1738800150952,0.155442,96499.0,96497.0,0.08104672]
[1738800151531,0.15544,96501.0,96497.0,0.08104672]
[1738800151735,0.15542,96513.0,96503.0,0.155434]
[1738800152000,0.155423,96511.0,96504.0,0.00103609]
[1738800152196,0.155423,96511.0,96499.0,0.0475]
[1738800152197,0.3251,96516.0,96499.0,0.202941]
[1738800152356,0.155424,96510.0,96501.0,0.155437]
[1738800152757,0.155429,96507.0,96501.0,0.0010361]
[1738800152986,0.155427,96509.0,96499.0,0.202941]
[1738800153151,0.155428,96508.0,96500.0,0.00103612]
[1738800153355,0.155433,96505.0,96499.0,0.0475]
[1738800153535,0.3251,96516.0,96500.0,0.032078]
[1738800153736,0.3251,96516.0,96500.0,0.04629135]
[1738800154128,0.155431,96506.0,96501.0,0.032078]
[1738800154314,0.207221,96515.0,96501.0,0.032078]
[1738800154547,0.3251,96516.0,96500.0,0.01317728]
[1738800154795,0.155439,96501.0,96499.0,0.0475]
[1738800155036,0.155443,96498.0,96497.0,0.00024672]
[1738800155253,0.40794665,96498.0,96497.0,0.00024672]
[1738800155460,0.49308665,96498.0,96497.0,0.00024672]
[1738800157318,0.40794665,96498.0,96497.0,0.00024672]
[1738800157777,0.49308665,96498.0,96497.0,0.00024672]
[1738800157937,0.43094665,96498.0,96497.0,0.00024672]
[1738800158113,0.75604665,96498.0,96497.0,0.00024672]
[1738800158477,0.328453,96492.0,96491.0,0.12112922]
[1738800158718,0.43095665,96492.0,96491.0,0.12159556]
[1738800159059,0.43095665,96492.0,96491.0,0.12097584]
[1738800159455,0.49322687,96492.0,96491.0,0.12097584]
[1738800160995,0.43095665,96492.0,96491.0,0.12097584]
[1738800161818,0.43095665,96492.0,96491.0,0.12049723]
[1738800162467,0.155453,96492.0,96491.0,0.12049723]
[1738800162596,0.155453,96492.0,96491.0,0.20249723]
[1738800163031,0.207225,96513.0,96491.0,0.30500088]
[1738800163272,0.155436,96503.0,96493.0,0.155451]
[1738800163494,0.155429,96507.0,96494.0,0.00103619]
[1738800163645,0.155426,96509.0,96499.0,0.15544]
[1738800163855,0.15543,96507.0,96500.0,0.03317526]
[1738800164057,0.155431,96506.0,96500.0,0.00103615]
[1738800164384,0.10250365,96512.0,96491.0,0.20249723]
[1738800164585,0.10250365,96512.0,96492.0,0.00103613]
[1738800164796,0.01081517,96550.0,96495.0,0.01932336]
[1738800164996,0.155408,96521.0,96511.0,0.155422]
[1738800165213,0.10250365,96521.0,96512.0,0.03317374]
[1738800165497,0.10250365,96521.0,96513.0,0.03213771]
[1738800165875,0.3251,96539.0,96515.0,0.0476]
[1738800166075,0.3251,96557.0,96521.0,0.0828]
[1738800166286,0.155375,96541.0,96529.0,0.155392]
[1738800166489,0.15537,96544.0,96530.0,0.03317351]
[1738800166693,0.15,96556.0,96530.0,0.03317351]
[1738800166901,0.207157,96546.0,96530.0,0.03213771]
[1738800167106,0.155383,96536.0,96530.0,0.03213771]
[1738800167278,0.00036423,96531.0,96530.0,0.03213771]
[1738800167480,0.00036423,96531.0,96522.0,0.03213771]
[1738800167678,0.00036423,96531.0,96523.0,0.06813958]
[1738800167881,0.00036423,96531.0,96529.0,0.155392]
[1738800168082,0.00036423,96531.0,96530.0,0.03213771]
[1738800168282,0.00036423,96531.0,96522.0,0.03213771]
[1738800168507,0.155397,96527.0,96523.0,0.03213771]
[1738800168828,0.1554,96525.0,96524.0,0.03213771]
[1738800169060,0.1554,96525.0,96522.0,0.03213771]
[1738800169266,0.155397,96527.0,96523.0,0.03213771]
[1738800169597,0.1554,96525.0,96523.0,0.03213771]
[1738800170053,0.10250365,96524.0,96523.0,0.03213771]
[1738800170523,0.10250365,96524.0,96515.0,0.0476]
[1738800170699,0.207211,96520.0,96512.0,0.0805]
[1738800170840,0.155419,96513.0,96512.0,0.0805]
[1738800172712,0.207222,96515.0,96502.0,0.0821]
[1738800172948,0.207222,96515.0,96491.0,0.12003089]
[1738800172949,0.155443,96498.0,96497.0,0.000107]
[1738800174873,0.10250365,96513.0,96497.0,0.000107]
[1738800175121,0.009,96535.0,96508.0,0.207234]
[1738800175337,0.155415,96516.0,96509.0,0.00103599]
[1738800175551,0.155417,96515.0,96509.0,0.00103599]
[1738800175968,0.15282713,96515.0,96507.0,0.155428]
[1738800176385,0.10250365,96528.0,96490.0,1.25019872]
[1738800176592,0.10250365,96528.0,96502.0,0.155437]
[1738800176799,0.10250365,96528.0,96503.0,0.00103604]
[1738800177008,0.10250365,96528.0,96501.0,0.00103604]
[1738800177199,0.155434,96504.0,96500.0,0.00103607]
[1738800177404,0.207195,96527.0,96497.0,0.000107]
[1738800177613,0.155443,96499.0,96497.0,0.000107]
[1738800178646,0.10250365,96498.0,96497.0,0.000107]
[1738800178972,0.42760365,96498.0,96497.0,0.000107]
[1738800181007,0.43802957,96498.0,96497.0,0.000107]
[1738800181518,0.42760365,96498.0,96497.0,0.000107]
[1738800181710,0.155426,96509.0,96497.0,0.10261065]
[1738800181952,0.10250365,96509.0,96499.0,0.0765]
[1738800182152,0.3251,96511.0,96501.0,0.207251]
[1738800182359,0.480522,96511.0,96502.0,0.15647109]
[1738800182558,0.207229,96512.0,96502.0,0.155436]
[1738800182854,0.06214,96528.0,96503.0,0.00103609]
[1738800182987,0.155408,96520.0,96511.0,0.155421]
[1738800183189,0.155408,96520.0,96512.0,0.00103602]
[1738800183373,0.155392,96530.0,96514.0,0.282323]
[1738800183582,0.00013952,96530.0,96520.0,0.21610781]
[1738800183806,0.155395,96528.0,96521.0,0.00103589]
[1738800184003,0.155395,96528.0,96522.0,0.00103591]
[1738800184467,0.155393,96529.0,96520.0,0.155407]
[1738800184645,0.00013952,96530.0,96523.0,0.0494]
[1738800184854,0.00013952,96530.0,96529.0,0.155393]
[1738800185055,0.00013952,96530.0,96529.0,0.19773164]
[1738800185663,0.00013952,96530.0,96529.0,0.00103576]
[1738800185862,0.00013952,96530.0,96523.0,0.0494]
[1738800186079,0.207191,96529.0,96523.0,0.0494]
[1738800186284,0.00013952,96530.0,96523.0,0.204802]
[1738800186509,0.00013952,96530.0,96523.0,0.0494]
[1738800186879,0.00013952,96530.0,96524.0,0.02703288]
[1738800187101,0.00013952,96530.0,96525.0,0.1554]
[1738800187307,0.00013952,96530.0,96528.0,0.155394]
[1738800187628,0.00013952,96530.0,96529.0,0.08003571]
[1738800188912,0.00013952,96530.0,96529.0,0.08003572]
[1738800189132,0.15553152,96530.0,96529.0,0.079]
[1738800189748,0.155401,96524.0,96523.0,0.0494]
[1738800189951,0.155401,96524.0,96485.0,1.51410318]
[1738800189952,0.155404,96522.0,96521.0,0.03082514]
[1738800191160,0.58300765,96522.0,96521.0,0.03082514]
[1738800191404,0.155443,96498.0,96493.0,0.0494]
[1738800191931,0.155425,96510.0,96493.0,0.0494]
[1738800192250,0.20721,96520.0,96505.0,0.155431]
[1738800192449,0.10250365,96519.0,96506.0,0.00103604]
[1738800192651,0.155427,96509.0,96506.0,0.00103604]
[1738800192854,0.15542,96513.0,96502.0,0.155436]
[1738800193069,0.3251,96522.0,96503.0,0.20828208]
[1738800193266,0.155412,96518.0,96508.0,0.155426]
[1738800193466,0.155417,96515.0,96508.0,0.00103603]
[1738800193670,0.15542,96513.0,96502.0,0.03638371]
[1738800193938,0.155413,96517.0,96502.0,0.03638371]
[1738800194163,0.155413,96517.0,96500.0,0.42335981]
[1738800194164,0.3251,96522.0,96520.0,0.155407]
[1738800194322,0.3251,96522.0,96521.0,0.0494]
[1738800194534,0.00022471,96531.0,96522.0,0.207206]
[1738800194731,0.00022471,96531.0,96523.0,0.1564368]
[1738800194932,0.00036423,96531.0,96523.0,0.155401]
[1738800195284,0.00036423,96531.0,96524.0,0.20583446]
[1738800195455,0.00036423,96531.0,96525.0,0.155399]
[1738800195655,0.00036423,96531.0,96526.0,0.0010358]
[1738800195855,0.155392,96530.0,96525.0,0.0010358]
[1738800196093,0.15575523,96531.0,96522.0,0.155403]
[1738800196297,0.155392,96530.0,96522.0,0.155403]
[1738800196428,0.00036423,96531.0,96522.0,0.2048447]
[1738800196664,0.1554,96525.0,96522.0,0.0494417]
[1738800197040,0.00036423,96531.0,96521.0,0.0494]